fUSD/lending_fUSD_20260404
["ID","MTS","AMOUNT","RATE_DAILY","PERIOD"]
[419671741,1775276956948,1590.35,5.423e-05,2]
[419671742,1775276956996,1590.35,5.67e-05,2]
[419671743,1775276957040,1590.35,5.916e-05,2]
[419671744,1775276957218,1590.35,6.163e-05,2]
[419671745,1775276957296,1590.35,6.409e-05,2]
[419671746,1775276957484,1590.35,6.656e-05,2]
[419671747,1775276957680,1590.35,6.902e-05,2]
[419671748,1775276957865,1590.35,7.149e-05,2]
[419671749,1775276958237,1590.35,7.395e-05,2]
[419671750,1775276958445,1590.35,7.642e-05,2]
[419671751,1775276958668,1590.35,7.888e-05,2]
[419671752,1775276959083,1590.35,8.135e-05,2]
[419671753,1775276959283,1590.35,8.381e-05,2]
[419671754,1775276959474,863.58544406,8.628e-05,2]
[419671755,1775276959498,726.76455594,8.628e-05,2]
[419671756,1775276959657,1590.35,8.874e-05,2]
[419671757,1775276960101,1590.35,9.121e-05,2]
[419671758,1775276960232,1590.35,9.368e-05,2]
[419671759,1775276973038,-165.02681148,9.956e-05,2]
[419671760,1775276973062,-116.47916852,9.96e-05,2]
[419671770,1775277032065,-530.12669042,9.93e-05,2]
[419671771,1775277032091,-450.0,9.93e-05,2]
[419671772,1775277032100,-669.87330958,9.93e-05,2]
[419671774,1775277032109,-300.0,9.93e-05,2]
[419671776,1775277032118,-150.0,9.93e-05,2]
[419671778,1775277032128,-7296.9972606,9.931e-05,2]
[419671782,1775277032233,-510.75545401,9.93e-05,2]
[419671783,1775277032242,-500.0,9.93e-05,2]
[419671784,1775277032254,-202067.97967409,9.931e-05,2]
[419671785,1775277032265,-80993.810335,9.931e-05,2]
[419671786,1775277032276,-7211.46559341,9.931e-05,2]
[419671787,1775277032287,-2245.88125224,9.931e-05,2]
[419671788,1775277032299,-985.9174424,9.931e-05,2]
[419671789,1775277032310,-494.97495455,9.931e-05,2]
[419671790,1775277032507,-500.0,9.93e-05,2]
[419671791,1775277032516,-3668.0,9.931e-05,2]
[419671792,1775277032657,-351.95748645,9.931e-05,2]
[419671793,1775277032669,-661.27450817,9.931e-05,2]
[419671794,1775277032679,-3992.15954963,9.931e-05,2]
[419671795,1775277033155,-50.58272245,9.93e-05,2]
[419671796,1775277033166,-159.31533569,9.93e-05,2]
[419671797,1775277033175,-93.49271374,9.93e-05,2]
[419671801,1775277037869,-331.65232841,9.93e-05,2]
[419671802,1775277037879,-43.8352711,9.93e-05,2]
[419671803,1775277037893,-456.1647289,9.93e-05,2]
[419671804,1775277037903,-500.0,9.93e-05,2]
[419671805,1775277037912,-500.0,9.93e-05,2]
[419671806,1775277037921,-500.0,9.93e-05,2]
[419671807,1775277037933,-500.0,9.93e-05,2]
[419671808,1775277037943,-500.0,9.93e-05,2]
[419671809,1775277037953,-150.0,9.93e-05,2]
[419671810,1775277037962,-500.0,9.93e-05,2]
[419671811,1775277037972,-500.0,9.93e-05,2]
[419671812,1775277037982,-500.0,9.93e-05,2]
[419671813,1775277037993,-500.0,9.93e-05,2]
[419671814,1775277038002,-500.0,9.93e-05,2]
[419671815,1775277038013,-2190029.58194346,9.931e-05,2]
[419671816,1775277038023,-9174.71258546,9.931e-05,2]
[419671817,1775277038032,-6656.43693148,9.96e-05,2]
[419671818,1775277038041,-546.36319348,0.0001,2]
[419671819,1775277038051,-151.92,0.00010053,2]
[419671820,1775277038063,-5418.74313556,0.00010056,2]
[419671821,1775277038074,-9999.99,0.00010056,2]
[419671822,1775277038084,-999.99,0.00010056,2]
[419671823,1775277038094,-9999.99,0.00010056,2]
[419671824,1775277038104,-150.99,0.00010056,2]
[419671825,1775277038113,-150.99,0.00010056,2]
[419671826,1775277038123,-9999.99,0.00010056,2]
[419671827,1775277038132,-3657.01,0.00010056,2]
[419671828,1775277038141,-1266.82,0.00010056,2]
[419671829,1775277038150,-1570.92,0.00010056,2]
[419671830,1775277038159,-299.99,0.0001006,2]
[419671831,1775277038170,-15253.88,0.0001006,2]
[419671832,1775277038179,-9999.99,0.0001006,2]
[419671833,1775277038188,-166.66,0.00010106,2]
[419671834,1775277038198,-2500.0,0.00010108,2]
[419671835,1775277038208,-852.53201753,0.00010108,2]
[419671836,1775277038218,-150.0,0.00010156,2]
[419671837,1775277038229,-179.8064311,0.00010156,2]
[419671838,1775277038239,-179.8064311,0.00010156,2]
[419671839,1775277038248,-153.89288769,0.00010207,2]
[419671840,1775277038258,-150.0,0.00010208,2]
[419671841,1775277038268,-261.83785163,0.00010208,2]
[419671842,1775277038279,-358.2579183,0.00010208,2]
[419671843,1775277038288,-33029.0565,0.00010208,2]
[419671844,1775277038297,-5490.724,0.00010208,2]
[419671845,1775277038308,-956.19418023,0.00010208,2]
[419671846,1775277038319,-24028.95,0.00010247,2]
[419671848,1775277038328,-500.0,0.00010268,2]
[419671849,1775277038337,-200.0,0.00010268,2]
[419671850,1775277038346,-500.0,0.00010268,2]
[419671851,1775277038355,-500.0,0.00010268,2]
[419671852,1775277038364,-500.0,0.00010268,2]
[419671853,1775277038373,-500.0,0.00010268,2]
[419671854,1775277038382,-151.0,0.00010268,2]
[419671855,1775277038391,-500.0,0.00010268,2]
[419671856,1775277038400,-151.0,0.00010268,2]
[419671857,1775277038409,-500.0,0.00010268,2]
[419671858,1775277038419,-151.0,0.00010268,2]
[419671859,1775277038428,-500.0,0.00010268,2]
[419671860,1775277038437,-151.0,0.00010268,2]
[419671861,1775277038446,-500.0,0.00010268,2]
[419671862,1775277038456,-151.0,0.00010268,2]
[419671863,1775277038465,-500.0,0.00010268,2]
[419671864,1775277038474,-500.0,0.00010268,2]
[419671865,1775277038483,-151.0,0.00010268,2]
[419671866,1775277038493,-500.0,0.00010268,2]
[419671867,1775277038502,-500.0,0.00010268,2]
[419671868,1775277038510,-151.0,0.00010268,2]
[419671869,1775277038521,-500.0,0.00010268,2]
[419671870,1775277038530,-500.0,0.00010268,2]
[419671871,1775277038539,-500.0,0.00010268,2]
[419671872,1775277038548,-151.0,0.00010268,2]
[419671873,1775277038557,-500.0,0.00010268,2]
[419671874,1775277038566,-151.0,0.00010268,2]
[419671875,1775277038575,-500.0,0.00010268,2]
[419671876,1775277038584,-151.0,0.00010268,2]
[419671877,1775277038593,-500.0,0.00010268,2]
[419671878,1775277038602,-151.0,0.00010268,2]
[419671879,1775277038611,-500.0,0.00010268,2]
[419671880,1775277038620,-151.0,0.00010268,2]
[419671881,1775277038629,-151.0,0.00010268,2]
[419671882,1775277038637,-500.0,0.00010268,2]
[419671883,1775277038647,-151.0,0.00010268,2]
[419671884,1775277038656,-151.0,0.00010268,2]
[419671885,1775277038666,-500.0,0.00010268,2]
[419671886,1775277038675,-151.0,0.00010268,2]
[419671887,1775277038684,-151.0,0.00010268,2]
[419671888,1775277038693,-500.0,0.00010268,2]
[419671889,1775277038702,-151.0,0.00010268,2]
[419671890,1775277038711,-151.0,0.00010268,2]
[419671891,1775277038720,-151.0,0.00010268,2]
[419671892,1775277038730,-151.0,0.00010268,2]
[419671893,1775277038739,-151.0,0.00010268,2]
[419671894,1775277038748,-151.0,0.00010268,2]
[419671895,1775277038758,-151.0,0.00010268,2]
[419671896,1775277038767,-151.0,0.00010268,2]
[419671897,1775277038776,-151.0,0.00010268,2]
[419671898,1775277038786,-151.0,0.00010268,2]
[419671899,1775277038795,-151.0,0.00010268,2]
[419671900,1775277038804,-151.0,0.00010268,2]
[419671901,1775277038812,-151.0,0.00010268,2]
[419671902,1775277038822,-151.0,0.00010268,2]
[419671903,1775277038831,-151.0,0.00010268,2]
[419671904,1775277038840,-1386.78395259,0.00010268,2]
[419671905,1775277038849,-55394.0,0.00010274,2]
[419671906,1775277038862,-546.36319348,0.00010298,2]
[419671907,1775277038871,-692.4,0.00010301,2]
[419671908,1775277038880,-151.0,0.00010305,2]
[419671909,1775277038889,-151.0,0.00010305,2]
[419671910,1775277038898,-151.0,0.00010305,2]
[419671911,1775277038908,-155.553,0.00010307,2]
[419671912,1775277038917,-288.22217165,0.00010308,2]
[419671913,1775277038927,-1000.0,0.00010308,2]
[419671914,1775277038936,-1500000.0,0.00010308,2]
[419671915,1775277039171,-500.0,0.00010308,2]
[419671916,1775277039184,-503.23062407,0.00010373,2]
[419671917,1775277039194,-500.0,0.00010373,2]
[419671918,1775277039205,-500.0,0.00010373,2]
[419671919,1775277039214,-460.90821721,0.00010373,2]
[419671920,1775277039224,-500.0,0.00010373,2]
[419671921,1775277039235,-167.61479911,0.00010373,2]
[419671922,1775277039244,-500.0,0.00010373,2]
[419671923,1775277039253,-500.0,0.00010373,2]
[419671924,1775277039263,-500.0,0.00010373,2]
[419671925,1775277039274,-500.0,0.00010373,2]
[419671926,1775277039284,-500.0,0.00010373,2]
[419671927,1775277039295,-203.7164708,0.00010373,2]
[419671928,1775277039305,-500.0,0.00010373,2]
[419671929,1775277039314,-500.0,0.00010373,2]
[419671930,1775277039324,-500.0,0.00010373,2]
[419671931,1775277039335,-1600.0,0.00010379,2]
[419671932,1775277039344,-166.66,0.00010419,2]
[419671933,1775277039354,-199.0,0.00010469,2]
[419671934,1775277039365,-445.0,0.00010474,2]
[419671935,1775277039375,-1906.0,0.00010495,2]
[419671936,1775277039384,-446.0,0.00010516,2]
[419671937,1775277039395,-500.0,0.00010542,2]
[419671938,1775277039404,-160.72,0.00010542,2]
[419671939,1775277039414,-167.62,0.00010557,2]
[419671940,1775277039423,-164.0,0.00010563,2]
[419671941,1775277039432,-692.4,0.00010575,2]
[419671942,1775277039442,-151.92,0.00010582,2]
[419671943,1775277039451,-190.0,0.0001059,2]
[419671944,1775277039460,-1207.0,0.00010611,2]
[419671945,1775277039469,-1379.0,0.00010632,2]
[419671946,1775277039478,-193.0,0.00010664,2]
[419671947,1775277039487,-5000.0,0.00010718,2]
[419671948,1775277039497,-166.66,0.00010732,2]
[419671949,1775277039506,-5000.0,0.00010737,2]
[419671950,1775277039515,-250.0,0.00010737,2]
[419671951,1775277039525,-5000.0,0.00010772,2]
[419671952,1775277039534,-500.0,0.00010816,2]
[419671953,1775277039544,-201.9876343,0.00010816,2]
[419671954,1775277039553,-994.42051783,0.00010816,2]
[419671955,1775277039563,-692.4,0.00010849,2]
[419671957,1775277039572,-511.12151388,0.00010921,2]
[419671958,1775277039582,-1133.18121348,0.00010921,2]
[419671959,1775277039591,-501.8263106,0.00010921,2]
[419671960,1775277039600,-1000.0,0.00010921,2]
[419671961,1775277039609,-1000.0,0.00010921,2]
[419671962,1775277039619,-1000.0,0.00010921,2]
[419671963,1775277039628,-1001.10601609,0.00010921,2]
[419671964,1775277039637,-1000.0,0.00010921,2]
[419671965,1775277039647,-1000.0,0.00010921,2]
[419671966,1775277039656,-159.62018257,0.00010921,2]
[419671967,1775277039665,-315.73243601,0.00010921,2]
[419671968,1775277039675,-420.0,0.00010923,2]
[419671969,1775277039684,-1680.0,0.00010923,2]
[419671970,1775277039693,-255.0,0.00010923,2]
[419671971,1775277039702,-5000.0,0.00010923,2]
[419671972,1775277039712,-250.0,0.00010923,2]
[419671973,1775277039721,-250.0,0.00010952,2]
[419671974,1775277039731,-502.00566011,0.00010959,2]
[419671975,1775277039741,-150.0,0.00010959,2]
[419671976,1775277039751,-166.66,0.00011045,2]
[419671977,1775277039762,-256.89227692,0.0001109,2]
[419671978,1775277039772,-6476.43236885,0.00011099,2]
[419671979,1775277039782,-6476.43236878,0.00011099,2]
[419671981,1775277039792,-17471.53102059,0.00011099,2]
[419671982,1775277039803,-17471.5310205,0.00011099,2]
[419671983,1775277039813,-151.92,0.00011111,2]
[419671984,1775277039822,-692.4,0.00011123,2]
[419671985,1775277039831,-150.0,0.00011233,2]
[419671986,1775277039840,-17471.5310205,0.00011393,2]
[419671987,1775277039850,-692.4,0.00011397,2]
[419671988,1775277039859,-1500.0,0.00011468,2]
[419671989,1775277039868,-703.7698014,0.00011468,2]
[419671990,1775277039878,-1500.0,0.00011468,2]
[419671991,1775277039887,-1500.0,0.00011468,2]
[419671992,1775277039897,-1507.047752,0.00011468,2]
[419671993,1775277039907,-6476.43236878,0.00011472,2]
[419671994,1775277039916,-1600.0,0.00011532,2]
[419671995,1775277039926,-151.92,0.0001164,2]
[419671996,1775277039936,-692.4,0.00011671,2]
[419671997,1775277039945,-692.4,0.00011945,2]
[419671998,1775277039955,-300.0,0.00012015,2]
[419671999,1775277039964,-2351.0,0.00012015,2]
[419672000,1775277039974,-433.0,0.00012015,2]
[419672001,1775277039983,-2004.95248982,0.00012016,2]
[419672002,1775277039995,-504.31085202,0.00012016,2]
[419672003,1775277040005,-2000.0,0.00012016,2]
[419672004,1775277040016,-17471.5310205,0.00012037,2]
[419672005,1775277040026,-6476.43236878,0.00012104,2]
[419672006,1775277040037,-151.92,0.00012169,2]
[419672007,1775277040048,-692.45856465,0.00012219,2]
[419672008,1775277040059,-845.9608693,0.00012564,2]
[419672009,1775277040068,-17471.5310205,0.0001268,2]
[419672010,1775277040077,-1600.0,0.00012685,2]
[419672011,1775277040087,-151.92,0.00012698,2]
[419672012,1775277040096,-6476.43236878,0.00012736,2]
[419672013,1775277040106,-250.34616056,0.00013001,2]
[419672014,1775277040116,-207.74914259,0.00013047,2]
[419672015,1775277040125,-235.76065781,0.00013066,2]
[419672016,1775277040135,-521.0,0.00013111,2]
[419672017,1775277040144,-250.0,0.00013155,2]
[419672018,1775277040155,-3292.0,0.00013216,2]
[419672019,1775277040164,-736.0,0.00013216,2]
[419672020,1775277040175,-151.92,0.00013227,2]
[419672021,1775277040184,-240.65691757,0.00013294,2]
[419672022,1775277040193,-721.9,0.00013294,2]
[419672023,1775277040202,-17471.5310205,0.00013323,2]
[419672024,1775277040212,-6476.43236878,0.00013368,2]
[419672025,1775277040221,-186.989467,0.00013424,2]
[419672026,1775277040230,-213.9698,0.00013424,2]
[419672027,1775277040240,-560.968396,0.00013424,2]
[419672028,1775277040249,-702.24009228,0.00013573,2]
[419672029,1775277040259,-500.0,0.00013698,2]
[419672030,1775277040268,-500.0,0.00013698,2]
[419672031,1775277040277,-500.0,0.00013698,2]
[419672032,1775277040287,-500.0,0.00013698,2]
[419672033,1775277040297,-500.0,0.00013698,2]
[419672034,1775277040307,-500.0,0.00013698,2]
[419672035,1775277040317,-500.0,0.00013698,2]
[419672036,1775277040326,-500.0,0.00013698,2]
[419672037,1775277040335,-500.0,0.00013698,2]
[419672038,1775277040345,-500.0,0.00013698,2]
[419672039,1775277040354,-500.0,0.00013698,2]
[419672040,1775277040364,-500.0,0.00013698,2]
[419672041,1775277040373,-500.0,0.00013698,2]
[419672042,1775277040382,-500.0,0.00013698,2]
[419672043,1775277040392,-500.0,0.00013698,2]
[419672044,1775277040402,-500.0,0.00013698,2]
[419672045,1775277040411,-500.0,0.00013698,2]
[419672046,1775277040420,-500.0,0.00013698,2]
[419672047,1775277040430,-500.0,0.00013698,2]
[419672048,1775277040440,-500.0,0.00013698,2]
[419672049,1775277040449,-500.0,0.00013698,2]
[419672050,1775277040458,-500.0,0.00013698,2]
[419672051,1775277040468,-500.0,0.00013698,2]
[419672052,1775277040477,-500.0,0.00013698,2]
[419672053,1775277040487,-500.0,0.00013698,2]
[419672054,1775277040496,-500.0,0.00013698,2]
[419672055,1775277040506,-500.0,0.00013698,2]
[419672056,1775277040515,-500.0,0.00013698,2]
[419672057,1775277040524,-500.0,0.00013698,2]
[419672058,1775277040534,-500.0,0.00013698,2]
[419672059,1775277040543,-500.0,0.00013698,2]
[419672060,1775277040553,-500.0,0.00013698,2]
[419672061,1775277040563,-500.0,0.00013698,2]
[419672062,1775277040572,-500.0,0.00013698,2]
[419672063,1775277040581,-500.0,0.00013698,2]
[419672064,1775277040591,-514.47518034,0.00013698,2]
[419672065,1775277040600,-721.46,0.00013698,2]
[419672066,1775277040609,-721.46,0.00013698,2]
[419672067,1775277040618,-721.46,0.00013698,2]
[419672068,1775277040627,-721.46,0.00013698,2]
[419672069,1775277040635,-721.46,0.00013698,2]
[419672070,1775277040644,-721.46,0.00013698,2]
[419672071,1775277040653,-721.46,0.00013698,2]
[419672072,1775277040662,-721.46,0.00013698,2]
[419672073,1775277040671,-721.46,0.00013698,2]
[419672074,1775277040680,-721.46,0.00013698,2]
[419672075,1775277040689,-721.46,0.00013698,2]
[419672076,1775277040697,-721.46,0.00013698,2]
[419672077,1775277040706,-721.46,0.00013698,2]
[419672078,1775277040715,-721.46,0.00013698,2]
[419672079,1775277040724,-721.46,0.00013698,2]
[419672080,1775277040733,-721.46,0.00013698,2]
[419672081,1775277040743,-721.46,0.00013698,2]
[419672082,1775277040753,-500.0,0.00013698,2]
[419672083,1775277040763,-500.0,0.00013698,2]
[419672084,1775277040773,-500.0,0.00013698,2]
[419672085,1775277040782,-500.0,0.00013698,2]
[419672086,1775277040792,-500.0,0.00013698,2]
[419672087,1775277040801,-171.3934212,0.00013698,2]
[419672088,1775277040810,-500.0,0.00013698,2]
[419672089,1775277040819,-500.0,0.00013698,2]
[419672090,1775277040828,-500.0,0.00013698,2]
[419672091,1775277040838,-500.0,0.00013698,2]
[419672092,1775277040847,-500.0,0.00013698,2]
[419672093,1775277040857,-500.0,0.00013698,2]
[419672094,1775277040866,-500.0,0.00013698,2]
[419672095,1775277040876,-500.0,0.00013698,2]
[419672096,1775277040887,-153.3776321,0.00013698,2]
[419672097,1775277040897,-500.0,0.00013698,2]
[419672098,1775277040907,-500.0,0.00013698,2]
[419672099,1775277040916,-500.0,0.00013698,2]
[419672100,1775277040926,-500.0,0.00013698,2]
[419672101,1775277040936,-500.0,0.00013698,2]
[419672102,1775277040945,-554.98922439,0.00013698,2]
[419672103,1775277040954,-502.02201151,0.00013698,2]
[419672104,1775277040964,-515.28433318,0.00013698,2]
[419672105,1775277040973,-500.0,0.00013698,2]
[419672106,1775277040983,-500.0,0.00013698,2]
[419672107,1775277040992,-500.0,0.00013698,2]
[419672108,1775277041001,-500.0,0.00013698,2]
[419672109,1775277041011,-500.0,0.00013698,2]
[419672110,1775277041020,-507.01970036,0.00013698,2]
[419672111,1775277041030,-500.0,0.00013698,2]
[419672112,1775277041040,-500.0,0.00013698,2]
[419672113,1775277041049,-500.0,0.00013698,2]
[419672114,1775277041059,-500.0,0.00013698,2]
[419672115,1775277041068,-500.0,0.00013698,2]
[419672116,1775277041077,-500.0,0.00013698,2]
[419672117,1775277041086,-500.0,0.00013698,2]
[419672118,1775277041095,-500.0,0.00013698,2]
[419672119,1775277041104,-500.0,0.00013698,2]
[419672120,1775277041115,-500.0,0.00013698,2]
[419672121,1775277041125,-500.0,0.00013698,2]
[419672122,1775277041135,-500.0,0.00013698,2]
[419672123,1775277041144,-500.0,0.00013698,2]
[419672124,1775277041153,-500.0,0.00013698,2]
[419672125,1775277041163,-500.0,0.00013698,2]
[419672126,1775277041172,-500.0,0.00013698,2]
[419672127,1775277041181,-500.0,0.00013698,2]
[419672128,1775277041191,-500.0,0.00013698,2]
[419672129,1775277041200,-500.0,0.00013698,2]
[419672130,1775277041210,-500.0,0.00013698,2]
[419672131,1775277041220,-500.0,0.00013698,2]
[419672132,1775277041229,-315.75,0.00013698,2]
[419672133,1775277041239,-500.0,0.00013698,2]
[419672134,1775277041248,-500.0,0.00013698,2]
[419672135,1775277041258,-500.0,0.00013698,2]
[419672136,1775277041268,-500.0,0.00013698,2]
[419672137,1775277041277,-500.0,0.00013698,2]
[419672138,1775277041286,-312.5,0.00013698,2]
[419672139,1775277041296,-500.0,0.00013698,2]
[419672140,1775277041305,-500.0,0.00013698,2]
[419672141,1775277041314,-500.0,0.00013698,2]
[419672142,1775277041323,-500.0,0.00013698,2]
[419672143,1775277041333,-500.0,0.00013698,2]
[419672144,1775277041342,-500.0,0.00013698,2]
[419672145,1775277041351,-500.0,0.00013698,2]
[419672146,1775277041360,-500.0,0.00013698,2]
[419672147,1775277041370,-500.0,0.00013698,2]
[419672148,1775277041379,-500.0,0.00013698,2]
[419672149,1775277041388,-500.0,0.00013698,2]
[419672150,1775277041397,-500.0,0.00013698,2]
[419672151,1775277041406,-500.0,0.00013698,2]
[419672152,1775277041415,-500.0,0.00013698,2]
[419672153,1775277041424,-500.0,0.00013698,2]
[419672154,1775277041434,-160.12835999,0.00013698,2]
[419672155,1775277041445,-500.0,0.00013698,2]
[419672156,1775277041454,-500.0,0.00013698,2]
[419672157,1775277041464,-500.0,0.00013698,2]
[419672158,1775277041473,-500.0,0.00013698,2]
[419672159,1775277041482,-500.0,0.00013698,2]
[419672160,1775277041492,-500.0,0.00013698,2]
[419672161,1775277041500,-500.0,0.00013698,2]
[419672162,1775277041510,-322.40547967,0.00013698,2]
[419672163,1775277041520,-500.0,0.00013698,2]
[419672164,1775277041529,-500.0,0.00013698,2]
[419672165,1775277041538,-546.99599556,0.00013698,2]
[419672166,1775277041548,-150.0,0.00013699,2]
[419672167,1775277041557,-150.0,0.00013699,2]
[419672168,1775277041566,-150.0,0.00013699,2]
[419672169,1775277041575,-150.0,0.00013699,2]
[419672170,1775277041584,-150.0,0.00013699,2]
[419672171,1775277041593,-150.0,0.00013699,2]
[419672172,1775277041603,-151.92,0.00013757,2]
[419672173,1775277041612,-1600.0,0.00013839,2]
[419672174,1775277041621,-17471.5310205,0.00013966,2]
[419672175,1775277041631,-150.0,0.00013973,2]
[419672176,1775277041640,-150.0,0.00013973,2]
[419672177,1775277041650,-150.0,0.00013973,2]
[419672178,1775277041659,-344.77648348,0.00013984,2]
[419672179,1775277041669,-500.0,0.00013984,2]
[419672180,1775277041678,-190.36885442,0.00013994,2]
[419672181,1775277041687,-6476.43236878,0.00014,2]
[419672182,1775277041696,-473.51720145,0.00014006,2]
[419672183,1775277041706,-150.0,0.00014247,2]
[419672184,1775277041715,-150.0,0.00014247,2]
[419672185,1775277041724,-151.92,0.00014286,2]
[419672186,1775277041734,-150.0,0.000144,2]
[419672187,1775277041743,-150.0,0.000144,2]
[419672188,1775277041752,-150.0,0.000144,2]
[419672189,1775277041761,-150.0,0.000144,2]
[419672190,1775277041771,-150.33770113,0.000144,2]
[419672191,1775277041779,-150.0,0.000144,2]
[419672192,1775277041789,-150.0,0.000144,2]
[419672193,1775277041798,-150.0,0.000144,2]
[419672194,1775277041807,-150.0,0.000144,2]
[419672195,1775277041816,-150.0,0.000144,2]
[419672196,1775277041826,-150.0,0.000144,2]
[419672197,1775277041835,-150.0,0.000144,2]
[419672198,1775277041844,-358.25791825,0.00014481,2]
[419672199,1775277041854,-721.46,0.00014503,2]
[419672200,1775277041863,-1852.42,0.00014503,2]
[419672201,1775277041872,-181.9,0.00014503,2]
[419672202,1775277041882,-181.9,0.00014503,2]
[419672203,1775277041892,-181.9,0.00014503,2]
[419672204,1775277041901,-181.9,0.00014503,2]
[419672205,1775277041911,-181.9,0.00014503,2]
[419672206,1775277041921,-181.9,0.00014503,2]
[419672207,1775277041931,-181.9,0.00014503,2]
[419672208,1775277041942,-181.9,0.00014503,2]
[419672209,1775277041952,-182.0,0.00014503,2]
[419672210,1775277041965,-259.26,0.00014505,2]
[419672211,1775277041975,-150.0,0.00014533,2]
[419672212,1775277041984,-402.0,0.00014537,2]
[419672213,1775277041994,-4609.0,0.00014538,2]
[419672214,1775277042003,-150.0,0.0001456,2]
[419672215,1775277042013,-150.0,0.00014578,2]
[419672216,1775277042023,-17471.5310205,0.0001461,2]
[419672217,1775277042033,-6476.43236878,0.00014632,2]
[419672218,1775277042042,-150.0,0.00014667,2]
[419672219,1775277042052,-500.0,0.00014705,2]
[419672220,1775277042062,-150.0,0.0001472,2]
[419672221,1775277042071,-150.0,0.00014756,2]
[419672222,1775277042080,-150.0,0.000148,2]
[419672223,1775277042091,-150.0,0.0001488,2]
[419672224,1775277042102,-259.2538525,0.00014915,2]
[419672225,1775277042111,-150.0,0.00014933,2]
[419672226,1775277042121,-150.0,0.00014933,2]
[419672227,1775277042130,-150.0,0.00014933,2]
[419672228,1775277042139,-150.0,0.00014933,2]
[419672229,1775277042149,-150.0,0.00014933,2]
[419672230,1775277042158,-150.0,0.00014933,2]
[419672231,1775277042168,-150.0,0.00014933,2]
[419672232,1775277042177,-500.0,0.00015025,2]
[419672233,1775277042186,-500.0,0.00015025,2]
[419672234,1775277042196,-500.0,0.00015025,2]
[419672235,1775277042206,-500.0,0.00015025,2]
[419672236,1775277042215,-500.0,0.00015025,2]
[419672237,1775277042224,-500.0,0.00015025,2]
[419672238,1775277042234,-250.0,0.00015025,2]
[419672239,1775277042243,-500.0,0.00015025,2]
[419672240,1775277042252,-250.0,0.00015025,2]
[419672241,1775277042262,-500.0,0.00015025,2]
[419672242,1775277042271,-250.0,0.00015025,2]
[419672243,1775277042281,-500.0,0.00015025,2]
[419672244,1775277042290,-250.0,0.00015025,2]
[419672245,1775277042299,-500.0,0.00015025,2]
[419672246,1775277042310,-250.0,0.00015025,2]
[419672247,1775277042319,-500.0,0.00015025,2]
[419672248,1775277042328,-250.0,0.00015025,2]
[419672249,1775277042338,-500.0,0.00015025,2]
[419672250,1775277042347,-250.0,0.00015025,2]
[419672251,1775277042357,-250.0,0.00015025,2]
[419672252,1775277042367,-250.0,0.00015025,2]
[419672253,1775277042376,-250.0,0.00015025,2]
[419672254,1775277042386,-250.0,0.00015025,2]
[419672255,1775277042395,-500.0,0.00015025,2]
[419672256,1775277042405,-500.0,0.00015025,2]
[419672257,1775277042414,-500.0,0.00015025,2]
[419672258,1775277042424,-500.0,0.00015025,2]
[419672259,1775277042433,-500.0,0.00015025,2]
[419672260,1775277042443,-500.0,0.00015025,2]
[419672261,1775277042452,-500.0,0.00015025,2]